Workbook

Sheet Лист1
E1: Отправить данные в минэкономики
B2: Выполнение проектов/мероприятий программы развития производительных сил | C2: Выполнение проектов/мероприятий программы развития производительных сил | D2: Выполнение проектов/мероприятий программы развития производительных сил | E2: Выполнение проектов/мероприятий программы развития производительных сил | F2: Выполнение проектов/мероприятий программы развития производительных сил | G2: Выполнение проектов/мероприятий программы развития производительных сил | H2: Выполнение проектов/мероприятий программы развития производительных сил | I2: Выполнение проектов/мероприятий программы развития производительных сил | J2: Выполнение проектов/мероприятий программы развития производительных сил | K2: Выполнение проектов/мероприятий программы развития производительных сил | L2: Выполнение проектов/мероприятий программы развития производительных сил | M2: Выполнение проектов/мероприятий программы развития производительных сил
B3: Княгининский район | C3: Княгининский район | D3: Княгининский район | E3: Княгининский район | F3: Княгининский район | G3: Княгининский район
B4: II полугодие 2018 | C4: II полугодие 2018 | D4: II полугодие 2018 | E4: II полугодие 2018 | F4: II полугодие 2018 | G4: II полугодие 2018
B6: № | C6: Наименование предприятия/хозяйствующего субъекта (с указанием типа - крупное, среднее, малое, ИП)/наименование поселения | D6: Отрасль | E6: Наименование проекта/мероприятия | F6: Сроки реализации | G6: Ответственный орган исполнительной власти Нижегородской области | H6: Объем финансирования, млн. руб. | I6: Объем финансирования, млн. руб. | J6: Объем финансирования, млн. руб. | K6: Объем финансирования, млн. руб. | L6: Объем финансирования, млн. руб. | M6: Объем финансирования, млн. руб. | N6: Объем финансирования, млн. руб. | O6: Объем финансирования, млн. руб. | P6: Объем финансирования, млн. руб. | Q6: Объем финансирования, млн. руб. | R6: Объем финансирования, млн. руб. | S6: Объем финансирования, млн. руб. | T6: Объем финансирования, млн. руб. | U6: Объем финансирования, млн. руб. | V6: Объем финансирования, млн. руб. | W6: Объем финансирования, млн. руб. | X6: Объем финансирования, млн. руб. | Y6: Объем финансирования, млн. руб. | Z6: Объем финансирования, млн. руб. | AA6: Объем финансирования, млн. руб. | AB6: Объем финансирования, млн. руб. | AC6: Объем финансирования, млн. руб. | AD6: Объем финансирования, млн. руб. | AE6: Объем финансирования, млн. руб. | AF6: Объем финансирования, млн. руб. | AG6: Объем финансирования, млн. руб. | AH6: Объем финансирования, млн. руб. | AI6: Эффект от реализации проектов /мероприятий | AJ6: Эффект от реализации проектов /мероприятий | AK6: Эффект от реализации проектов /мероприятий | AL6: Эффект от реализации проектов /мероприятий | AM6: Эффект от реализации проектов /мероприятий | AN6: Эффект от реализации проектов /мероприятий | AO6: Эффект от реализации проектов /мероприятий | AP6: Эффект от реализации проектов /мероприятий | AQ6: Эффект от реализации проектов /мероприятий | AR6: Эффект от реализации проектов /мероприятий | AS6: Эффект от реализации проектов /мероприятий | AT6: Эффект от реализации проектов /мероприятий | AU6: Дополнительная информация о проекте/мероприятии (с указанием причин невыполнения)
B7: № | C7: Наименование предприятия/хозяйствующего субъекта (с указанием типа - крупное, среднее, малое, ИП)/наименование поселения | D7: Отрасль | E7: Наименование проекта/мероприятия | F7: Сроки реализации | G7: Ответственный орган исполнительной власти Нижегородской области | H7: Всего, в т.ч. | I7: Всего, в т.ч. | J7: Всего, в т.ч. | K7: Всего, в т.ч. | L7: Всего, в т.ч. | M7: Всего, в т.ч. | N7: Федеральный бюджет | O7: Федеральный бюджет | P7: Федеральный бюджет | Q7: Федеральный бюджет | R7: Федеральный бюджет | S7: Федеральный бюджет | T7: Областной бюджет | U7: Областной бюджет | V7: Областной бюджет | W7: Областной бюджет | X7: Областной бюджет | Y7: Областной бюджет | Z7: Местный бюджет | AA7: Местный бюджет | AB7: Местный бюджет | AC7: Местный бюджет | AD7: Местный бюджет | AE7: Местный бюджет | AF7: Частные инвестиции (собственные и привлеченные средства) | AG7: Частные инвестиции (собственные и привлеченные средства) | AH7: Частные инвестиции (собственные и привлеченные средства) | AI7: Объем отгруженной продукции (услуг), млн.руб. | AJ7: Объем отгруженной продукции (услуг), млн.руб. | AK7: Объем отгруженной продукции (услуг), млн.руб. | AL7: Объем оборота розничной торговли и общественного питания, млн. руб. | AM7: Объем оборота розничной торговли и общественного питания, млн. руб. | AN7: Объем оборота розничной торговли и общественного питания, млн. руб. | AO7: Налоговые поступления в консолидированный бюджет, млн.руб. | AP7: Налоговые поступления в консолидированный бюджет, млн.руб. | AQ7: Налоговые поступления в консолидированный бюджет, млн.руб. | AR7: Создано рабочих мест, ед. | AS7: Создано рабочих мест, ед. | AT7: Создано рабочих мест, ед. | AU7: Дополнительная информация о проекте/мероприятии (с указанием причин невыполнения)
B8: № | C8: Наименование предприятия/хозяйствующего субъекта (с указанием типа - крупное, среднее, малое, ИП)/наименование поселения | D8: Отрасль | E8: Наименование проекта/мероприятия | F8: Сроки реализации | G8: Ответственный орган исполнительной власти Нижегородской области | H8: План | I8: Профинансировано в рамках ПРПС | J8: Освоено (кассовые расходы) в рамках ПРПС | K8: % финансирования от плана | L8: % освоения средств от объема финансирования | M8: % освоения средств от плана | N8: План | O8: Профинансировано в рамках ПРПС | P8: Освоено (кассовые расходы) в рамках ПРПС | Q8: % финансирования от плана | R8: % освоения средств от объема финансирования | S8: % освоения средств от плана | T8: План | U8: Профинансировано в рамках ПРПС | V8: Освоено (кассовые расходы) в рамках ПРПС | W8: % финансирования от плана | X8: % освоения средств от объема финансирования | Y8: % освоения средств от плана | Z8: План | AA8: Профинансировано в рамках ПРПС | AB8: Освоено (кассовые расходы) в рамках ПРПС | AC8: % финансирования от плана | AD8: % освоения средств от объема финансирования | AE8: % освоения средств от плана | AF8: План | AG8: Факт | AH8: % от плана | AI8: План | AJ8: Факт | AK8: % от плана | AL8: План | AM8: Факт | AN8: % от плана | AO8: План | AP8: Факт | AQ8: % от плана | AR8: План | AS8: Факт | AT8: % от плана | AU8: Дополнительная информация о проекте/мероприятии (с указанием причин невыполнения)
B9: Промышленность | C9: Промышленность | D9: Промышленность | E9: Промышленность | F9: Промышленность | G9: Промышленность | H9: Промышленность | I9: Промышленность | J9: Промышленность | K9: Промышленность | L9: Промышленность | M9: Промышленность | N9: Промышленность | O9: Промышленность | P9: Промышленность | Q9: Промышленность | R9: Промышленность | S9: Промышленность | T9: Промышленность | U9: Промышленность | V9: Промышленность | W9: Промышленность | X9: Промышленность | Y9: Промышленность | Z9: Промышленность | AA9: Промышленность | AB9: Промышленность | AC9: Промышленность | AD9: Промышленность | AE9: Промышленность | AF9: Промышленность | AG9: Промышленность | AH9: Промышленность | AI9: Промышленность | AJ9: Промышленность | AK9: Промышленность | AL9: Промышленность | AM9: Промышленность | AN9: Промышленность | AO9: Промышленность | AP9: Промышленность | AQ9: Промышленность | AR9: Промышленность | AS9: Промышленность | AT9: Промышленность | AU9: Промышленность
B10: 1.1 | C10: ОАО "Княгининское молоко" / Крупное / | D10: Пищевая промышленность | E10: Модернизация головного предприятия ОАО "Княгининское молоко" | F10: 2010 - 2020 | G10: Министерство сельского хозяйства и продовольственных ресурсов Нижегородской области | H10: 40 | I10: 0 | J10: 46.3 | K10: 0 | M10: 115.75 | O10: 0 | P10: 0 | U10: 0 | V10: 0 | AA10: 0 | AB10: 0 | AF10: 40 | AG10: 46.3 | AH10: 115.75 | AI10: 2600 | AJ10: 2414.2 | AK10: 92.85384615 | AM10: 0 | AO10: 45.5 | AP10: 45.5 | AQ10: 100 | AS10: 0
B11: 1.2 | C11: ООО "Княгиниская ДСК" / Малое / | D11: Строительство | E11: Производство общестроительных работ по строительству автомобильных дорог, железных дорог и взлетно-посадочных полос аэродрома | F11: 2015 - 2020 | G11: Министерство промышленности, торговли и предпринимательства Нижегородской области | H11: 0 | I11: 0 | J11: 0 | O11: 0 | P11: 0 | U11: 0 | V11: 0 | AA11: 0 | AB11: 0 | AF11: 0 | AG11: 0 | AI11: 59 | AJ11: 63.8 | AK11: 108.1355932 | AM11: 0 | AO11: 2.5 | AP11: 2.5 | AQ11: 100 | AS11: 0
B12: 1.3 | C12: ООО "Крупко" / Малое / | D12: Пищевая промышленность | E12: Увеличение объемов производства крупяных изделий | F12: 2010 - 2020 | G12: Министерство промышленности, торговли и предпринимательства Нижегородской области | H12: 0 | I12: 0 | J12: 0 | O12: 0 | P12: 0 | U12: 0 | V12: 0 | AA12: 0 | AB12: 0 | AF12: 0 | AG12: 0 | AJ12: 0 | AM12: 0 | AP12: 0 | AS12: 0
B13: 1.4 | C13: ООО "Сервис-НН" / Малое / | D13: Пищевая промышленность | E13: Открытие производства минеральных вод и других безалкогольных напитков | F13: 2015 - 2020 | G13: Министерство промышленности, торговли и предпринимательства Нижегородской области | H13: 0 | I13: 0 | J13: 0 | O13: 0 | P13: 0 | U13: 0 | V13: 0 | AA13: 0 | AB13: 0 | AF13: 0 | AG13: 0 | AJ13: 0 | AM13: 0 | AP13: 0 | AS13: 0
B14: 1.5 | C14: ООО "Водолей" / Малое / | D14: Пищевая промышленность | E14: Открытие производства бутилированной воды | F14: 2013 - 2020 | G14: Министерство промышленности, торговли и предпринимательства Нижегородской области | H14: 0 | I14: 0 | J14: 0 | O14: 0 | P14: 0 | U14: 0 | V14: 0 | AA14: 0 | AB14: 0 | AF14: 0 | AG14: 0 | AI14: 1.14 | AJ14: 1.15 | AK14: 100.877193 | AM14: 0 | AO14: 0.3 | AP14: 0.3 | AQ14: 100 | AS14: 0
B15: 1.6 | C15: ООО "Колобок" / Малое / | D15: Пищевая промышленность | E15: Реконструкция производства на ООО "Колобок" | F15: 2016 - 2020 | G15: Министерство промышленности, торговли и предпринимательства Нижегородской области | H15: 0 | I15: 0 | J15: 0 | O15: 0 | P15: 0 | U15: 0 | V15: 0 | AA15: 0 | AB15: 0 | AF15: 0 | AG15: 0 | AI15: 37.5 | AJ15: 48.1 | AK15: 128.2666667 | AM15: 0 | AO15: 2.5 | AP15: 2.5 | AQ15: 100 | AS15: 0
B16: 1.7 | C16: ИП "Емельянов" / ИП / | D16: Пищевая промышленность | E16: Открытие производства мясных полуфабрикатов | F16: 2017 - 2020 | G16: Министерство промышленности, торговли и предпринимательства Нижегородской области | H16: 0 | I16: 0 | J16: 0 | O16: 0 | P16: 0 | U16: 0 | V16: 0 | AA16: 0 | AB16: 0 | AF16: 0 | AG16: 0 | AI16: 0.3 | AJ16: 0.3 | AK16: 100 | AM16: 0 | AO16: 0.04 | AP16: 0.04 | AQ16: 100 | AS16: 0
B17: Сельское хозяйство | C17: Сельское хозяйство | D17: Сельское хозяйство | E17: Сельское хозяйство | F17: Сельское хозяйство | G17: Сельское хозяйство | H17: Сельское хозяйство | I17: Сельское хозяйство | J17: Сельское хозяйство | K17: Сельское хозяйство | L17: Сельское хозяйство | M17: Сельское хозяйство | N17: Сельское хозяйство | O17: Сельское хозяйство | P17: Сельское хозяйство | Q17: Сельское хозяйство | R17: Сельское хозяйство | S17: Сельское хозяйство | T17: Сельское хозяйство | U17: Сельское хозяйство | V17: Сельское хозяйство | W17: Сельское хозяйство | X17: Сельское хозяйство | Y17: Сельское хозяйство | Z17: Сельское хозяйство | AA17: Сельское хозяйство | AB17: Сельское хозяйство | AC17: Сельское хозяйство | AD17: Сельское хозяйство | AE17: Сельское хозяйство | AF17: Сельское хозяйство | AG17: Сельское хозяйство | AH17: Сельское хозяйство | AI17: Сельское хозяйство | AJ17: Сельское хозяйство | AK17: Сельское хозяйство | AL17: Сельское хозяйство | AM17: Сельское хозяйство | AN17: Сельское хозяйство | AO17: Сельское хозяйство | AP17: Сельское хозяйство | AQ17: Сельское хозяйство | AR17: Сельское хозяйство | AS17: Сельское хозяйство | AT17: Сельское хозяйство | AU17: Сельское хозяйство
B18: 2.1 | C18: ЗАО "Покровская слобода" / Среднее / | D18: Животноводство | E18: Реконструкция животноводческих комплексов на 200 голов | F18: 2010 - 2020 | G18: Министерство сельского хозяйства и продовольственных ресурсов Нижегородской области | H18: 2.5 | I18: 0 | J18: 6.7 | K18: 0 | M18: 268 | O18: 0 | P18: 0 | U18: 0 | V18: 0 | AA18: 0 | AB18: 0 | AF18: 2.5 | AG18: 6.7 | AH18: 268 | AI18: 21.5 | AJ18: 22 | AK18: 102.3255814 | AM18: 0 | AO18: 1.32 | AP18: 1.32 | AQ18: 100 | AS18: 0
B19: 2.2 | C19: Сельскохозяйственные предприятия и организации, КФХ / Малое / | D19: Растениеводство | E19: Приобретение энергосберегающей, высокопроизводительной техники | F19: 2010 - 2020 | G19: Министерство сельского хозяйства и продовольственных ресурсов Нижегородской области | H19: 30 | I19: 0 | J19: 67 | K19: 0 | M19: 223.3333333 | O19: 0 | P19: 0 | U19: 0 | V19: 0 | AA19: 0 | AB19: 0 | AF19: 30 | AG19: 67 | AH19: 223.3333333 | AI19: 1.4 | AJ19: 1.5 | AK19: 107.1428571 | AM19: 0 | AO19: 0.15 | AP19: 0.2 | AQ19: 133.3333333 | AR19: 2 | AS19: 2 | AT19: 100
B20: 2.3 | C20: Сельскохозяйственные предприятия и организации, КФХ / Малое / | D20: Животноводство | E20: Приобретение племенного скота | F20: 2010 - 2020 | G20: Министерство сельского хозяйства и продовольственных ресурсов Нижегородской области | H20: 0 | I20: 0 | J20: 0 | O20: 0 | P20: 0 | U20: 0 | V20: 0 | AA20: 0 | AB20: 0 | AF20: 0 | AG20: 0 | AJ20: 0 | AM20: 0 | AP20: 0 | AS20: 0
B21: 2.4 | C21: ЛПХ и КФХ / КФХ / | D21: Сельское хозяйство | E21: Развитие ЛПХ и КФХ, льготное кредитование ЛПХ и КФХ | F21: 2010 - 2020 | G21: Министерство сельского хозяйства и продовольственных ресурсов Нижегородской области | H21: 1 | I21: 0.33 | J21: 1.33 | K21: 33 | L21: 403.030303 | M21: 133 | O21: 0 | P21: 0 | U21: 0.33 | V21: 0.33 | X21: 100 | AA21: 0 | AB21: 0 | AF21: 1 | AG21: 1 | AH21: 100 | AJ21: 0 | AM21: 0 | AP21: 0 | AS21: 0
B22: 2.5 | C22: КФХ "Полянская С.М." / КФХ / | D22: Сельское хозяйство | E22: Развитие семейных животноводческих ферм | F22: 2014 - 2020 | G22: Министерство сельского хозяйства и продовольственных ресурсов Нижегородской области | H22: 0 | I22: 0 | J22: 0 | O22: 0 | P22: 0 | U22: 0 | V22: 0 | AA22: 0 | AB22: 0 | AF22: 0 | AG22: 0 | AI22: 5.5 | AJ22: 5.5 | AK22: 100 | AM22: 0 | AO22: 0.2 | AP22: 0.2 | AQ22: 100 | AS22: 0
B23: 2.6 | C23: ООО "Новая звезда" / Малое / | D23: Сельское хозяйство | E23: Развитие животноводческих ферм | F23: 2018 - 2020 | G23: Министерство сельского хозяйства и продовольственных ресурсов Нижегородской области | H23: 0 | I23: 0 | J23: 8.1 | O23: 0 | P23: 0 | U23: 0 | V23: 0 | AA23: 0 | AB23: 0 | AF23: 0 | AG23: 8.1 | AI23: 10 | AJ23: 10 | AK23: 100 | AM23: 0 | AO23: 0.7 | AP23: 0.7 | AQ23: 100 | AS23: 0
B24: 2.7 | C24: КФХ "Моисеева Д.А." / КФХ / | D24: Сельское хозяйство | E24: Развитие семейных животноводческих ферм | F24: 2018 - 2020 | G24: Министерство сельского хозяйства и продовольственных ресурсов Нижегородской области | H24: 1.4 | I24: 0.8 | J24: 1.4 | K24: 57.14285714 | L24: 175 | M24: 100 | N24: 0.4 | O24: 0.4 | P24: 0.4 | Q24: 100 | R24: 100 | S24: 100 | T24: 0.4 | U24: 0.4 | V24: 0.4 | W24: 100 | X24: 100 | Y24: 100 | AA24: 0 | AB24: 0 | AF24: 0.6 | AG24: 0.6 | AH24: 100 | AI24: 23 | AJ24: 23 | AK24: 100 | AM24: 0 | AO24: 1.5 | AP24: 1.5 | AQ24: 100 | AR24: 1 | AS24: 1 | AT24: 100
B25: Торговля, общественное питание, платные услуги населению | C25: Торговля, общественное питание, платные услуги населению | D25: Торговля, общественное питание, платные услуги населению | E25: Торговля, общественное питание, платные услуги населению | F25: Торговля, общественное питание, платные услуги населению | G25: Торговля, общественное питание, платные услуги населению | H25: Торговля, общественное питание, платные услуги населению | I25: Торговля, общественное питание, платные услуги населению | J25: Торговля, общественное питание, платные услуги населению | K25: Торговля, общественное питание, платные услуги населению | L25: Торговля, общественное питание, платные услуги населению | M25: Торговля, общественное питание, платные услуги населению | N25: Торговля, общественное питание, платные услуги населению | O25: Торговля, общественное питание, платные услуги населению | P25: Торговля, общественное питание, платные услуги населению | Q25: Торговля, общественное питание, платные услуги населению | R25: Торговля, общественное питание, платные услуги населению | S25: Торговля, общественное питание, платные услуги населению | T25: Торговля, общественное питание, платные услуги населению | U25: Торговля, общественное питание, платные услуги населению | V25: Торговля, общественное питание, платные услуги населению | W25: Торговля, общественное питание, платные услуги населению | X25: Торговля, общественное питание, платные услуги населению | Y25: Торговля, общественное питание, платные услуги населению | Z25: Торговля, общественное питание, платные услуги населению | AA25: Торговля, общественное питание, платные услуги населению | AB25: Торговля, общественное питание, платные услуги населению | AC25: Торговля, общественное питание, платные услуги населению | AD25: Торговля, общественное питание, платные услуги населению | AE25: Торговля, общественное питание, платные услуги населению | AF25: Торговля, общественное питание, платные услуги населению | AG25: Торговля, общественное питание, платные услуги населению | AH25: Торговля, общественное питание, платные услуги населению | AI25: Торговля, общественное питание, платные услуги населению | AJ25: Торговля, общественное питание, платные услуги населению | AK25: Торговля, общественное питание, платные услуги населению | AL25: Торговля, общественное питание, платные услуги населению | AM25: Торговля, общественное питание, платные услуги населению | AN25: Торговля, общественное питание, платные услуги населению | AO25: Торговля, общественное питание, платные услуги населению | AP25: Торговля, общественное питание, платные услуги населению | AQ25: Торговля, общественное питание, платные услуги населению | AR25: Торговля, общественное питание, платные услуги населению | AS25: Торговля, общественное питание, платные услуги населению | AT25: Торговля, общественное питание, платные услуги населению | AU25: Торговля, общественное питание, платные услуги населению
B26: 3.1 | C26: ЗАО "ИКС 5 Недвижимость" / Крупное / | D26: Торговля | E26: Строительство магазина "Пятерочка" | F26: 2014 - 2020 | G26: Министерство промышленности, торговли и предпринимательства Нижегородской области | H26: 0 | I26: 0 | J26: 0 | O26: 0 | P26: 0 | U26: 0 | V26: 0 | AA26: 0 | AB26: 0 | AF26: 0 | AG26: 0 | AJ26: 0 | AL26: 84.5 | AM26: 84.5 | AN26: 100 | AO26: 1 | AP26: 1 | AQ26: 100 | AS26: 0
B27: 3.2 | C27: ООО "Магистраль" / Малое / | D27: Торговля, общественное питание | E27: Строительство гостиницы | F27: 2016 - 2020 | G27: Министерство промышленности, торговли и предпринимательства Нижегородской области | H27: 0 | I27: 0 | J27: 0 | O27: 0 | P27: 0 | U27: 0 | V27: 0 | AA27: 0 | AB27: 0 | AF27: 0 | AG27: 0 | AJ27: 0 | AM27: 0
B28: 3.3 | C28: МУП "Княгининское ЖКХ" / Среднее / | D28: Платные услуги | E28: Строительство муниципальной бани | F28: 2014 - 2020 | G28: Министерство промышленности, торговли и предпринимательства Нижегородской области | H28: 0 | I28: 0 | J28: 0 | O28: 0 | P28: 0 | U28: 0 | V28: 0 | AA28: 0 | AB28: 0 | AF28: 0 | AG28: 0 | AI28: 0.6 | AJ28: 0.73 | AK28: 121.6666667 | AM28: 0 | AO28: 0.1 | AP28: 0.1 | AQ28: 100 | AS28: 0
B29: 3.4 | C29: ООО "Магистраль" / Малое / | D29: Торговля, общественное питание | E29: Реконструкция кафе 45-й км | F29: 2015 - 2020 | G29: Министерство промышленности, торговли и предпринимательства Нижегородской области | H29: 0 | I29: 0 | J29: 0 | O29: 0 | P29: 0 | U29: 0 | V29: 0 | AA29: 0 | AB29: 0 | AF29: 0 | AG29: 0 | AI29: 8 | AJ29: 7.6 | AK29: 95 | AL29: 5.2 | AM29: 5.2 | AN29: 100 | AO29: 0.3 | AP29: 0.3 | AQ29: 100 | AS29: 0
B30: 3.5 | C30: ИП "Гаранина И.А." / ИП / | D30: Торговля, общественное питание | E30: Реконструкция здания столовой в кафе на 90 посадочных мест | F30: 2014 - 2020 | G30: Министерство промышленности, торговли и предпринимательства Нижегородской области | H30: 0 | I30: 0 | J30: 0 | O30: 0 | P30: 0 | U30: 0 | V30: 0 | AA30: 0 | AB30: 0 | AF30: 0 | AG30: 0 | AJ30: 0 | AL30: 1.2 | AM30: 1.2 | AN30: 100 | AO30: 0.12 | AP30: 0.12 | AQ30: 100 | AS30: 0
B31: 3.6 | C31: ИП, малые предприятия / ИП / | D31: Розничная торговля | E31: Строительство, реконструкция зданий 4-х магазинов в г.Княгинино | F31: 2016 - 2020 | G31: Министерство промышленности, торговли и предпринимательства Нижегородской области | H31: 0 | I31: 0 | J31: 0 | O31: 0 | P31: 0 | U31: 0 | V31: 0 | AA31: 0 | AB31: 0 | AF31: 0 | AG31: 0 | AJ31: 0 | AL31: 5.3 | AM31: 5.3 | AN31: 100 | AO31: 0.15 | AP31: 0.15 | AQ31: 100 | AS31: 0
B32: 3.7 | C32: Администрация Княгининского муниципального района / Среднее / | D32: Розничная торговля | E32: Строительство здания на площади "Ярмарки выходного дня" | F32: 2016 - 2020 | G32: Администрация муниципального района (городского округа) | H32: 0 | I32: 0 | J32: 0 | O32: 0 | P32: 0 | U32: 0 | V32: 0 | AA32: 0 | AB32: 0 | AF32: 0 | AG32: 0 | AJ32: 0 | AM32: 0 | AP32: 0 | AS32: 0
B33: 3.8 | C33: ИП "Звягинцев" / ИП / | D33: Торговля, общественное питание | E33: Реконструкция кафе-пицерия | F33: 2017 - 2020 | G33: Министерство промышленности, торговли и предпринимательства Нижегородской области | H33: 0 | I33: 0 | J33: 0 | O33: 0 | P33: 0 | U33: 0 | V33: 0 | AA33: 0 | AB33: 0 | AF33: 0 | AG33: 0 | AJ33: 0 | AL33: 0.5 | AM33: 0.6 | AN33: 120 | AO33: 0.04 | AP33: 0.05 | AQ33: 125 | AR33: 1 | AS33: 1 | AT33: 100
B34: 3.9 | C34: ИП "Водянова" / ИП / | D34: Торговля, общественное питание | E34: Открытие кафе-пиццерия | F34: 2017 - 2020 | G34: Министерство промышленности, торговли и предпринимательства Нижегородской области | H34: 0 | I34: 0 | J34: 0 | O34: 0 | P34: 0 | U34: 0 | V34: 0 | AA34: 0 | AB34: 0 | AF34: 0 | AG34: 0 | AJ34: 0 | AL34: 0.6 | AM34: 0.6 | AN34: 100 | AO34: 0.04 | AP34: 0.05 | AQ34: 125 | AS34: 0
B35: 3.10 | C35: ИП, малые предприятия / ИП / | D35: Торговля | E35: Строительство 3-х торговых центров в г. Княгинино | F35: 2017 - 2020 | G35: Министерство промышленности, торговли и предпринимательства Нижегородской области | H35: 15 | I35: 0 | J35: 15 | K35: 0 | M35: 100 | O35: 0 | P35: 0 | U35: 0 | V35: 0 | AA35: 0 | AB35: 0 | AF35: 15 | AG35: 15 | AH35: 100 | AJ35: 0 | AL35: 35 | AM35: 35 | AN35: 100 | AO35: 0.7 | AP35: 0.7 | AQ35: 100 | AR35: 12 | AS35: 12 | AT35: 100
B36: Инженерная инфраструктура | C36: Инженерная инфраструктура | D36: Инженерная инфраструктура | E36: Инженерная инфраструктура | F36: Инженерная инфраструктура | G36: Инженерная инфраструктура | H36: Инженерная инфраструктура | I36: Инженерная инфраструктура | J36: Инженерная инфраструктура | K36: Инженерная инфраструктура | L36: Инженерная инфраструктура | M36: Инженерная инфраструктура | N36: Инженерная инфраструктура | O36: Инженерная инфраструктура | P36: Инженерная инфраструктура | Q36: Инженерная инфраструктура | R36: Инженерная инфраструктура | S36: Инженерная инфраструктура | T36: Инженерная инфраструктура | U36: Инженерная инфраструктура | V36: Инженерная инфраструктура | W36: Инженерная инфраструктура | X36: Инженерная инфраструктура | Y36: Инженерная инфраструктура | Z36: Инженерная инфраструктура | AA36: Инженерная инфраструктура | AB36: Инженерная инфраструктура | AC36: Инженерная инфраструктура | AD36: Инженерная инфраструктура | AE36: Инженерная инфраструктура | AF36: Инженерная инфраструктура | AG36: Инженерная инфраструктура | AH36: Инженерная инфраструктура | AI36: Инженерная инфраструктура | AJ36: Инженерная инфраструктура | AK36: Инженерная инфраструктура | AL36: Инженерная инфраструктура | AM36: Инженерная инфраструктура | AN36: Инженерная инфраструктура | AO36: Инженерная инфраструктура | AP36: Инженерная инфраструктура | AQ36: Инженерная инфраструктура | AR36: Инженерная инфраструктура | AS36: Инженерная инфраструктура | AT36: Инженерная инфраструктура | AU36: Инженерная инфраструктура
B37: 4.1 | C37: ГБУЗ НО "Княгининская ЦРБ" / Среднее / | D37: Инженерная инфраструктура | E37: Оснащение ГБУЗ НО "Княгиниская ЦРБ" телемедицинским оборудованием а рамках ГП "Развитие здравоохранения НО" | F37: 2018 - 2020 | G37: Администрация муниципального района (городского округа) | H37: 0 | I37: 0 | J37: 0 | O37: 0 | P37: 0 | U37: 0 | V37: 0 | AA37: 0 | AB37: 0 | AF37: 0 | AG37: 0 | AJ37: 0 | AM37: 0 | AP37: 0 | AS37: 0
B38: 4.2 | C38: Администрация Княгининского муниципального района / Среднее / | D38: Инженерная инфраструктура | E38: Благоустройство мест массового отдыха населения (центрального парка в г.Княгинино) | F38: 2018 - 2018 | G38: Администрация муниципального района (городского округа) | H38: 0.9 | I38: 4.29 | J38: 4.29 | K38: 476.6666667 | L38: 100 | M38: 476.6666667 | O38: 2.21 | P38: 2.21 | R38: 100 | T38: 0.65 | U38: 0.79 | V38: 0.79 | W38: 121.5384615 | X38: 100 | Y38: 121.5384615 | Z38: 0.25 | AA38: 1.29 | AB38: 1.29 | AC38: 516 | AD38: 100 | AE38: 516 | AG38: 0 | AJ38: 0 | AM38: 0 | AP38: 0 | AS38: 0
B39: 4.3 | C39: ГБОУ ВО "Нижегородский государственный инженерно-экономический университет" / Среднее / | D39: Инженерная инфраструктура | E39: Реконструкция учебно-лабораторного корпуса №3 | F39: 2018 - 2018 | G39: Администрация муниципального района (городского округа) | H39: 3 | I39: 3 | J39: 3 | K39: 100 | L39: 100 | M39: 100 | O39: 0 | P39: 0 | T39: 3 | U39: 3 | V39: 3 | W39: 100 | X39: 100 | Y39: 100 | AA39: 0 | AB39: 0 | AG39: 0 | AJ39: 0 | AM39: 0 | AP39: 0 | AS39: 0
B40: 4.4 | C40: Администрация Княгининского муниципального района / Среднее / | D40: Инженерная инфраструктура | E40: Формирование современной городской среды на территории города Княгинино Княгининского района Нижегородской области на 2018-2022 годы | F40: 2018 - 2018 | G40: Администрация муниципального района (городского округа) | H40: 4.48 | I40: 5.08 | J40: 5.08 | K40: 113.3928571 | L40: 100 | M40: 113.3928571 | N40: 2.98 | O40: 2.98 | P40: 2.98 | Q40: 100 | R40: 100 | S40: 100 | T40: 1.05 | U40: 1.59 | V40: 1.59 | W40: 151.4285714 | X40: 100 | Y40: 151.4285714 | Z40: 0.45 | AA40: 0.51 | AB40: 0.51 | AC40: 113.3333333 | AD40: 100 | AE40: 113.3333333 | AG40: 0 | AJ40: 0 | AM40: 0 | AP40: 0 | AS40: 0
B41: Транспортная инфраструктура | C41: Транспортная инфраструктура | D41: Транспортная инфраструктура | E41: Транспортная инфраструктура | F41: Транспортная инфраструктура | G41: Транспортная инфраструктура | H41: Транспортная инфраструктура | I41: Транспортная инфраструктура | J41: Транспортная инфраструктура | K41: Транспортная инфраструктура | L41: Транспортная инфраструктура | M41: Транспортная инфраструктура | N41: Транспортная инфраструктура | O41: Транспортная инфраструктура | P41: Транспортная инфраструктура | Q41: Транспортная инфраструктура | R41: Транспортная инфраструктура | S41: Транспортная инфраструктура | T41: Транспортная инфраструктура | U41: Транспортная инфраструктура | V41: Транспортная инфраструктура | W41: Транспортная инфраструктура | X41: Транспортная инфраструктура | Y41: Транспортная инфраструктура | Z41: Транспортная инфраструктура | AA41: Транспортная инфраструктура | AB41: Транспортная инфраструктура | AC41: Транспортная инфраструктура | AD41: Транспортная инфраструктура | AE41: Транспортная инфраструктура | AF41: Транспортная инфраструктура | AG41: Транспортная инфраструктура | AH41: Транспортная инфраструктура | AI41: Транспортная инфраструктура | AJ41: Транспортная инфраструктура | AK41: Транспортная инфраструктура | AL41: Транспортная инфраструктура | AM41: Транспортная инфраструктура | AN41: Транспортная инфраструктура | AO41: Транспортная инфраструктура | AP41: Транспортная инфраструктура | AQ41: Транспортная инфраструктура | AR41: Транспортная инфраструктура | AS41: Транспортная инфраструктура | AT41: Транспортная инфраструктура | AU41: Транспортная инфраструктура
B42: 5.1 | C42: Администрация Княгининского муниципального района / Среднее / | D42: Транспортная инфраструктура | E42: Ремонт основной (центральной) ул.Октябрьская в г.Княгинино Нижегородской области | F42: 2018 - 2018 | G42: Администрация муниципального района (городского округа) | H42: 6.93 | I42: 6.93 | J42: 6.93 | K42: 100 | L42: 100 | M42: 100 | O42: 0 | P42: 0 | T42: 4.7 | U42: 4.7 | V42: 4.7 | W42: 100 | X42: 100 | Y42: 100 | Z42: 2.23 | AA42: 2.23 | AB42: 2.23 | AC42: 100 | AD42: 100 | AE42: 100 | AG42: 0 | AJ42: 0 | AM42: 0 | AP42: 0 | AS42: 0
B43: 5.2 | C43: Администрация Княгининского муниципального района / Среднее / | D43: Транспортная инфраструктура | E43: Строительство мостового перехода через р.Степановка на автомобильной дороге (22 ОП НР 22К-0043) Лысково-Княгинино км 16+091 в Княгининском районе Нижегородской области | F43: 2018 - 2018 | G43: Администрация муниципального района (городского округа) | H43: 49.97 | I43: 46.6 | J43: 46.6 | K43: 93.25595357 | L43: 100 | M43: 93.25595357 | O43: 0 | P43: 0 | T43: 49.97 | U43: 46.6 | V43: 46.6 | W43: 93.25595357 | X43: 100 | Y43: 93.25595357 | AA43: 0 | AB43: 0 | AG43: 0 | AJ43: 0 | AM43: 0 | AP43: 0 | AS43: 0
G44: Итого | H44: =SUM(H10:H16,H18:H22,H23:H24,H26:H29,H30:H31,H32:H34,H35,H37:H39,H40,H42:H43) -> 155.18 | I44: =SUM(I10:I16,I18:I22,I23:I24,I26:I29,I30:I31,I32:I34,I35,I37:I39,I40,I42:I43) -> 67.03 | J44: 211.73 | K44: 43.2 | L44: 315.9 | M44: 136.4 | N44: =SUM(N10:N16,N18:N22,N23:N24,N26:N29,N30:N31,N32:N34,N35,N37:N39,N40,N42:N43) -> 3.38 | O44: =SUM(O10:O16,O18:O22,O23:O24,O26:O29,O30:O31,O32:O34,O35,O37:O39,O40,O42:O43) -> 5.59 | P44: =SUM(P10:P16,P18:P22,P23:P24,P26:P29,P30:P31,P32:P34,P35,P37:P39,P40,P42:P43) -> 5.59 | Q44: 165.4 | R44: 100 | S44: 165.4 | T44: =SUM(T10:T16,T18:T22,T23:T24,T26:T29,T30:T31,T32:T34,T35,T37:T39,T40,T42:T43) -> 59.77 | U44: =SUM(U10:U16,U18:U22,U23:U24,U26:U29,U30:U31,U32:U34,U35,U37:U39,U40,U42:U43) -> 57.41 | V44: =SUM(V10:V16,V18:V22,V23:V24,V26:V29,V30:V31,V32:V34,V35,V37:V39,V40,V42:V43) -> 57.41 | W44: 96.1 | X44: 100 | Y44: 96.1 | Z44: =SUM(Z10:Z16,Z18:Z22,Z23:Z24,Z26:Z29,Z30:Z31,Z32:Z34,Z35,Z37:Z39,Z40,Z42:Z43) -> 2.93 | AA44: =SUM(AA10:AA16,AA18:AA22,AA23:AA24,AA26:AA29,AA30:AA31,AA32:AA34,AA35,AA37:AA39,AA40,AA42:AA43) -> 4.03 | AB44: =SUM(AB10:AB16,AB18:AB22,AB23:AB24,AB26:AB29,AB30:AB31,AB32:AB34,AB35,AB37:AB39,AB40,AB42:AB43) -> 4.03 | AC44: 137.5 | AD44: 100 | AE44: 137.5 | AF44: =SUM(AF10:AF16,AF18:AF22,AF23:AF24,AF26:AF29,AF30:AF31,AF32:AF34,AF35,AF37:AF39,AF40,AF42:AF43) -> 89.1 | AG44: =SUM(AG10:AG16,AG18:AG22,AG23:AG24,AG26:AG29,AG30:AG31,AG32:AG34,AG35,AG37:AG39,AG40,AG42:AG43) -> 144.7 | AH44: 162.4 | AI44: =SUM(AI10:AI16,AI18:AI22,AI23:AI24,AI26:AI29,AI30:AI31,AI32:AI34,AI35,AI37:AI39,AI40,AI42:AI43) -> 2767.94 | AJ44: =SUM(AJ10:AJ16,AJ18:AJ22,AJ23:AJ24,AJ26:AJ29,AJ30:AJ31,AJ32:AJ34,AJ35,AJ37:AJ39,AJ40,AJ42:AJ43) -> 2597.88 | AK44: 93.9 | AL44: =SUM(AL10:AL16,AL18:AL22,AL23:AL24,AL26:AL29,AL30:AL31,AL32:AL34,AL35,AL37:AL39,AL40,AL42:AL43) -> 132.3 | AM44: =SUM(AM10:AM16,AM18:AM22,AM23:AM24,AM26:AM29,AM30:AM31,AM32:AM34,AM35,AM37:AM39,AM40,AM42:AM43) -> 132.4 | AN44: 100.1 | AO44: =SUM(AO10:AO16,AO18:AO22,AO23:AO24,AO26:AO29,AO30:AO31,AO32:AO34,AO35,AO37:AO39,AO40,AO42:AO43) -> 57.16 | AP44: =SUM(AP10:AP16,AP18:AP22,AP23:AP24,AP26:AP29,AP30:AP31,AP32:AP34,AP35,AP37:AP39,AP40,AP42:AP43) -> 57.23 | AQ44: 100.1 | AR44: =SUM(AR10:AR16,AR18:AR22,AR23:AR24,AR26:AR29,AR30:AR31,AR32:AR34,AR35,AR37:AR39,AR40,AR42:AR43) -> 16 | AS44: =SUM(AS10:AS16,AS18:AS22,AS23:AS24,AS26:AS29,AS30:AS31,AS32:AS34,AS35,AS37:AS39,AS40,AS42:AS43) -> 16 | AT44: 100
